[Event "GrandPrix_29.05"]
[Site "Chess.com"]
[Date "2020.05.29"]
[Round "1"]
[White "Fandorine"]
[Black "Hakob-Hakobyan-Arm"]
[Result "1-0"]
[WhiteElo "2579"]
[BlackElo "2137"]
[TimeControl "600+2"]
[EndTime "9:06:21 PDT"]
[Termination "Fandorine won by resignation"]

1. e4 {[%clk 0:09:58.4]} 1... Nc6 {[%clk 0:10:00.2]} 2. Nf3 {[%clk 0:09:58.3]}
2... d6 {[%clk 0:10:01]} 3. d4 {[%clk 0:09:56.2]} 3... Nf6 {[%clk 0:10:02.2]} 4.
d5 {[%clk 0:09:57.3]} 4... Nb8 {[%clk 0:10:03]} 5. Bd3 {[%clk 0:09:58.3]} 5...
g6 {[%clk 0:10:04]} 6. O-O {[%clk 0:09:59.5]} 6... Bg7 {[%clk 0:10:05.1]} 7. h3
{[%clk 0:10:01.1]} 7... O-O {[%clk 0:10:05.8]} 8. c4 {[%clk 0:10:02.8]} 8... c6
{[%clk 0:10:06.1]} 9. Nc3 {[%clk 0:10:03.9]} 9... Nbd7 {[%clk 0:10:06.3]} 10.
Re1 {[%clk 0:10:04.8]} 10... a5 {[%clk 0:09:56.5]} 11. Bg5 {[%clk 0:10:04.5]}
11... Qb6 {[%clk 0:09:50.7]} 12. Rb1 {[%clk 0:10:01.8]} 12... Nc5 {[%clk
0:09:49.8]} 13. Bc2 {[%clk 0:10:02.4]} 13... Qb4 {[%clk 0:09:45]} 14. dxc6
{[%clk 0:09:54.2]} 14... Qxc4 {[%clk 0:09:15.4]} 15. e5 {[%clk 0:08:09.6]} 15...
dxe5 {[%clk 0:09:09.2]} 16. Nxe5 {[%clk 0:08:11.5]} 16... Qa6 {[%clk 0:09:10.6]}
17. Be3 {[%clk 0:08:12.4]} 17... Ne6 {[%clk 0:08:59.5]} 18. Bd3 {[%clk
0:08:09.7]} 18... Rd8 {[%clk 0:08:56.4]} 19. Bxa6 {[%clk 0:08:07.1]} 19... Rxd1
{[%clk 0:08:58.3]} 20. cxb7 {[%clk 0:07:54.1]} 20... Rxe1+ {[%clk 0:08:58.1]}
21. Rxe1 {[%clk 0:07:56]} 21... Bxb7 {[%clk 0:08:58.8]} 22. Bxb7 {[%clk
0:07:56.8]} 22... Rb8 {[%clk 0:09:00.7]} 23. Bf3 {[%clk 0:07:46.8]} 23... Rxb2
{[%clk 0:09:01.5]} 24. Rb1 {[%clk 0:07:43.6]} 24... Rxb1+ {[%clk 0:09:00.6]} 25.
Nxb1 {[%clk 0:07:45.5]} 25... Ne8 {[%clk 0:08:55.8]} 26. Nc6 {[%clk 0:07:44.7]}
1-0

[Event "GrandPrix_29.05"]
[Site "Chess.com"]
[Date "2020.05.29"]
[Round "1"]
[White "RogerFederer13"]
[Black "IwkooO"]
[Result "1-0"]
[WhiteElo "2083"]
[BlackElo "2400"]
[TimeControl "600+2"]
[EndTime "9:08:21 PDT"]
[Termination "RogerFederer13 won by resignation"]

1. e4 {[%clk 0:10:01.5]} 1... c5 {[%clk 0:10:00.3]} 2. Nf3 {[%clk 0:10:00.7]}
2... e6 {[%clk 0:10:01.3]} 3. d4 {[%clk 0:10:01.2]} 3... cxd4 {[%clk 0:10:03.2]}
4. Nxd4 {[%clk 0:10:03.1]} 4... Nc6 {[%clk 0:10:04.5]} 5. Nc3 {[%clk 0:10:03.1]}
5... a6 {[%clk 0:10:05.1]} 6. Nxc6 {[%clk 0:10:02.8]} 6... bxc6 {[%clk 0:10:07]}
7. Bd3 {[%clk 0:10:03.6]} 7... d5 {[%clk 0:10:07.9]} 8. O-O {[%clk 0:10:04.1]}
8... Nf6 {[%clk 0:10:07.9]} 9. Re1 {[%clk 0:09:57.2]} 9... Be7 {[%clk
0:10:03.7]} 10. e5 {[%clk 0:09:55.8]} 10... Nd7 {[%clk 0:10:05]} 11. Qg4 {[%clk
0:09:57]} 11... Kf8 {[%clk 0:10:06.6]} 12. Na4 {[%clk 0:09:44.8]} 12... c5
{[%clk 0:09:00.5]} 13. c4 {[%clk 0:08:04.9]} 13... d4 {[%clk 0:08:58.9]} 14. b3
{[%clk 0:06:46.5]} 14... Qc7 {[%clk 0:08:41.2]} 15. Qe2 {[%clk 0:06:28.7]} 15...
Bb7 {[%clk 0:08:40.6]} 16. Nb2 {[%clk 0:06:28.7]} 16... h5 {[%clk 0:08:30.6]}
17. Be4 {[%clk 0:06:28.3]} 17... g6 {[%clk 0:07:33.9]} 1-0

[Event "GrandPrix_29.05"]
[Site "Chess.com"]
[Date "2020.05.29"]
[Round "1"]
[White "Poghosyan_Suren"]
[Black "Msb2"]
[Result "0-1"]
[WhiteElo "2185"]
[BlackElo "1858"]
[TimeControl "600+2"]
[EndTime "9:09:17 PDT"]
[Termination "Msb2 won by resignation"]

1. d4 {[%clk 0:09:59.8]} 1... d5 {[%clk 0:10:00.2]} 2. c4 {[%clk 0:10:00.2]}
2... c6 {[%clk 0:10:01]} 3. Nf3 {[%clk 0:10:00.3]} 3... Nf6 {[%clk 0:10:01.6]}
4. Nc3 {[%clk 0:10:01.2]} 4... dxc4 {[%clk 0:10:02.7]} 5. a4 {[%clk 0:10:01.1]}
5... Bf5 {[%clk 0:10:00.7]} 6. Ne5 {[%clk 0:09:59.5]} 6... Qc7 {[%clk
0:09:54.2]} 7. Nxc4 {[%clk 0:09:54.8]} 7... Na6 {[%clk 0:09:52.1]} 8. f3 {[%clk
0:09:45.4]} 8... Rd8 {[%clk 0:09:50.3]} 9. e4 {[%clk 0:09:43.6]} 9... Be6 {[%clk
0:09:51.6]} 10. Bg5 {[%clk 0:08:02.5]} 10... Bxc4 {[%clk 0:08:33.7]} 11. Bxc4
{[%clk 0:08:04.4]} 11... e5 {[%clk 0:08:35.2]} 12. d5 {[%clk 0:07:46]} 12... Bc5
{[%clk 0:08:13.7]} 13. Qd2 {[%clk 0:07:39.9]} 13... Nb4 {[%clk 0:07:54.9]} 14.
a5 {[%clk 0:06:39.3]} 14... Qe7 {[%clk 0:07:23.9]} 15. Be3 {[%clk 0:05:35.4]}
15... Bxe3 {[%clk 0:07:22.4]} 16. Qxe3 {[%clk 0:05:36.4]} 16... Nc2+ {[%clk
0:07:23.3]} 0-1

[Event "GrandPrix_29.05"]
[Site "Chess.com"]
[Date "2020.05.29"]
[Round "1"]
[White "Skatchkov_V"]
[Black "MirMan90"]
[Result "0-1"]
[WhiteElo "2173"]
[BlackElo "2647"]
[TimeControl "600+2"]
[EndTime "9:09:48 PDT"]
[Termination "MirMan90 won by resignation"]

1. d4 {[%clk 0:09:59.6]} 1... Nf6 {[%clk 0:10:00.7]} 2. c4 {[%clk 0:09:58.5]}
2... g6 {[%clk 0:10:00.7]} 3. Nf3 {[%clk 0:09:57.9]} 3... Bg7 {[%clk 0:09:59]}
4. g3 {[%clk 0:09:59.1]} 4... O-O {[%clk 0:09:58.9]} 5. Bg2 {[%clk 0:10:00.8]}
5... d6 {[%clk 0:09:58.3]} 6. O-O {[%clk 0:09:59.4]} 6... Nc6 {[%clk 0:09:55]}
7. Nc3 {[%clk 0:10:00.4]} 7... Bf5 {[%clk 0:09:55.6]} 8. Bg5 {[%clk 0:10:00]}
8... Ne4 {[%clk 0:09:42.8]} 9. Nxe4 {[%clk 0:10:00.1]} 9... Bxe4 {[%clk
0:09:43.8]} 10. d5 {[%clk 0:10:02]} 10... Nb4 {[%clk 0:09:13.4]} 11. Qd2 {[%clk
0:09:00.8]} 11... a5 {[%clk 0:09:12.2]} 12. a3 {[%clk 0:06:25.2]} 12... Na6
{[%clk 0:09:03.2]} 13. Rae1 {[%clk 0:06:25.9]} 13... c6 {[%clk 0:07:54]} 14. e3
{[%clk 0:06:04.5]} 14... cxd5 {[%clk 0:07:42.3]} 15. h4 {[%clk 0:05:20.3]} 15...
h6 {[%clk 0:07:31.3]} 16. Bf4 {[%clk 0:05:21.2]} 16... e5 {[%clk 0:07:21.8]} 0-1

[Event "GrandPrix_29.05"]
[Site "Chess.com"]
[Date "2020.05.29"]
[Round "1"]
[White "Vesper2018"]
[Black "bernereremit"]
[Result "1-0"]
[WhiteElo "1791"]
[BlackElo "1765"]
[TimeControl "600+2"]
[EndTime "9:10:03 PDT"]
[Termination "Vesper2018 won by resignation"]

1. e4 {[%clk 0:08:29.7]} 1... c5 {[%clk 0:09:59.8]} 2. Nf3 {[%clk 0:06:43.6]}
2... d6 {[%clk 0:09:58.7]} 3. d4 {[%clk 0:06:25.1]} 3... cxd4 {[%clk 0:10:00.6]}
4. Nxd4 {[%clk 0:05:55.4]} 4... Nf6 {[%clk 0:10:00.1]} 5. Nc3 {[%clk 0:05:54.3]}
5... a6 {[%clk 0:10:01.1]} 6. h3 {[%clk 0:05:27.7]} 6... e6 {[%clk 0:09:58.4]}
7. g4 {[%clk 0:05:08]} 7... Nfd7 {[%clk 0:09:59.2]} 8. Bg2 {[%clk 0:05:08.6]}
8... Be7 {[%clk 0:09:56.7]} 9. O-O {[%clk 0:04:50.7]} 9... O-O {[%clk
0:09:56.5]} 10. Be3 {[%clk 0:04:51.5]} 10... Nc6 {[%clk 0:09:53.9]} 11. Qe2
{[%clk 0:04:47.6]} 11... Qc7 {[%clk 0:09:44.4]} 12. Rad1 {[%clk 0:04:47.7]}
12... b5 {[%clk 0:09:03.3]} 13. Nxc6 {[%clk 0:04:30.6]} 13... Qxc6 {[%clk
0:09:05.2]} 14. e5 {[%clk 0:04:25.1]} 14... d5 {[%clk 0:09:04.3]} 15. Nxd5
{[%clk 0:04:21.9]} 15... exd5 {[%clk 0:08:58.9]} 16. Bxd5 {[%clk 0:04:22.9]}
16... Qc7 {[%clk 0:08:55]} 17. Bxa8 {[%clk 0:04:22.2]} 17... Nb6 {[%clk
0:08:47.2]} 18. Bg2 {[%clk 0:04:21.7]} 18... Nc4 {[%clk 0:08:47.3]} 19. Bd4
{[%clk 0:03:56.2]} 19... Be6 {[%clk 0:08:37.8]} 20. f4 {[%clk 0:03:51.6]} 1-0

[Event "GrandPrix_29.05"]
[Site "Chess.com"]
[Date "2020.05.29"]
[Round "1"]
[White "Thor736"]
[Black "Jan1401"]
[Result "0-1"]
[WhiteElo "1988"]
[BlackElo "2450"]
[TimeControl "600+2"]
[EndTime "9:10:30 PDT"]
[Termination "Jan1401 won by resignation"]

1. e4 {[%clk 0:09:59.1]} 1... e6 {[%clk 0:10:00.9]} 2. d4 {[%clk 0:09:59.8]}
2... d5 {[%clk 0:10:01.8]} 3. Nd2 {[%clk 0:10:00.7]} 3... Nc6 {[%clk 0:10:02]}
4. Ngf3 {[%clk 0:10:01]} 4... Nf6 {[%clk 0:10:02.9]} 5. e5 {[%clk 0:10:00.1]}
5... Nd7 {[%clk 0:10:03.8]} 6. Bd3 {[%clk 0:10:00.5]} 6... Nb4 {[%clk
0:10:02.7]} 7. Be2 {[%clk 0:10:01.4]} 7... c5 {[%clk 0:10:04]} 8. c3 {[%clk
0:10:02.7]} 8... Nc6 {[%clk 0:10:05]} 9. O-O {[%clk 0:10:00.3]} 9... Be7 {[%clk
0:10:04.7]} 10. Bd3 {[%clk 0:09:58.1]} 10... a5 {[%clk 0:10:05.5]} 11. a4 {[%clk
0:09:56.9]} 11... Qb6 {[%clk 0:10:00.6]} 12. dxc5 {[%clk 0:09:48.8]} 12... Nxc5
{[%clk 0:09:50.6]} 13. Bc2 {[%clk 0:09:48.8]} 13... Qc7 {[%clk 0:09:51.4]} 14.
Re1 {[%clk 0:09:41.9]} 14... b6 {[%clk 0:09:48.5]} 15. Nf1 {[%clk 0:09:24.6]}
15... Ba6 {[%clk 0:09:44.3]} 16. Ng3 {[%clk 0:09:25.5]} 16... h6 {[%clk
0:09:12.2]} 17. Nh5 {[%clk 0:08:32.7]} 17... O-O-O {[%clk 0:08:50.7]} 18. Nd4
{[%clk 0:08:08.7]} 18... Nxe5 {[%clk 0:08:07.3]} 19. Bf4 {[%clk 0:07:13.5]}
19... Bd6 {[%clk 0:07:57.6]} 20. b4 {[%clk 0:07:06.7]} 20... Ncd3 {[%clk
0:07:50.1]} 21. Bxd3 {[%clk 0:06:45.4]} 21... Nxd3 {[%clk 0:07:44.1]} 22. Bxd6
{[%clk 0:06:46.4]} 22... Rxd6 {[%clk 0:07:14.4]} 23. b5 {[%clk 0:06:15.8]} 23...
Qxc3 {[%clk 0:06:38.2]} 24. Ne2 {[%clk 0:05:53.3]} 24... Qxe1+ {[%clk
0:06:26.6]} 0-1

[Event "GrandPrix_29.05"]
[Site "Chess.com"]
[Date "2020.05.29"]
[Round "1"]
[White "TheFireChess"]
[Black "Mugzyyy"]
[Result "1-0"]
[WhiteElo "2249"]
[BlackElo "2605"]
[TimeControl "600+2"]
[EndTime "9:10:32 PDT"]
[Termination "TheFireChess won by resignation"]

1. e4 {[%clk 0:09:55.2]} 1... c5 {[%clk 0:09:48.3]} 2. c3 {[%clk 0:09:55.2]}
2... d6 {[%clk 0:09:47.2]} 3. d4 {[%clk 0:09:55.7]} 3... Nf6 {[%clk 0:09:46]} 4.
dxc5 {[%clk 0:09:56]} 4... Nc6 {[%clk 0:09:46.6]} 5. f3 {[%clk 0:09:57.5]} 5...
dxc5 {[%clk 0:09:39.5]} 6. Qxd8+ {[%clk 0:09:57.3]} 6... Nxd8 {[%clk 0:09:41.4]}
7. Be3 {[%clk 0:09:58.1]} 7... e6 {[%clk 0:09:40.8]} 8. Na3 {[%clk 0:09:56.4]}
8... a6 {[%clk 0:09:33.2]} 9. Nc4 {[%clk 0:09:50.6]} 9... Nd7 {[%clk 0:09:34.3]}
10. O-O-O {[%clk 0:09:48.2]} 10... b5 {[%clk 0:09:34.3]} 11. Nd6+ {[%clk
0:09:46.6]} 11... Bxd6 {[%clk 0:09:35.4]} 12. Rxd6 {[%clk 0:09:47.9]} 12... Ke7
{[%clk 0:09:37.3]} 13. Rd2 {[%clk 0:09:43.5]} 13... Bb7 {[%clk 0:09:37.5]} 14.
Nh3 {[%clk 0:09:39.2]} 14... Bc6 {[%clk 0:09:36.7]} 15. Be2 {[%clk 0:09:37.4]}
15... Nb7 {[%clk 0:09:36.8]} 16. Rhd1 {[%clk 0:09:37.7]} 16... h6 {[%clk
0:09:33.4]} 17. Nf4 {[%clk 0:09:25.8]} 17... Ne5 {[%clk 0:09:34.3]} 18. Nh5
{[%clk 0:09:14.9]} 18... g6 {[%clk 0:09:28.2]} 19. Ng3 {[%clk 0:09:15.9]} 19...
g5 {[%clk 0:09:17.3]} 20. h3 {[%clk 0:08:25.5]} 20... Ng6 {[%clk 0:09:15.3]} 21.
Nh5 {[%clk 0:08:16.4]} 21... Rac8 {[%clk 0:08:52.6]} 22. g3 {[%clk 0:07:56.7]}
22... Ne5 {[%clk 0:08:45.2]} 23. f4 {[%clk 0:07:49.3]} 23... gxf4 {[%clk
0:08:45.7]} 24. gxf4 {[%clk 0:07:51.2]} 24... Nc4 {[%clk 0:08:46.9]} 25. Bxc4
{[%clk 0:07:48.6]} 25... bxc4 {[%clk 0:08:48.8]} 26. f5 {[%clk 0:07:23.7]} 26...
e5 {[%clk 0:08:10.4]} 27. f6+ {[%clk 0:07:15.1]} 27... Kf8 {[%clk 0:07:59.4]}
28. Bxc5+ {[%clk 0:06:43.7]} 28... Nxc5 {[%clk 0:07:47.7]} 29. Rd8+ {[%clk
0:06:43.4]} 29... Rxd8 {[%clk 0:07:49]} 30. Rxd8+ {[%clk 0:06:44.2]} 30... Be8
{[%clk 0:07:50.9]} 31. Ng7 {[%clk 0:06:44.8]} 31... Kg8 {[%clk 0:07:51.4]} 32.
Rxe8+ {[%clk 0:06:12]} 32... Kh7 {[%clk 0:07:49.7]} 33. Rxh8+ {[%clk 0:06:12.3]}
33... Kxh8 {[%clk 0:07:51.6]} 34. Nf5 {[%clk 0:06:12.9]} 34... Kh7 {[%clk
0:07:42.8]} 35. Nd6 {[%clk 0:06:12.5]} 35... Kg6 {[%clk 0:07:43.9]} 36. Nxc4
{[%clk 0:06:11.8]} 36... Kxf6 {[%clk 0:07:41.3]} 37. Nd2 {[%clk 0:06:11.8]}
37... Kg5 {[%clk 0:07:42.6]} 38. b4 {[%clk 0:06:11.2]} 38... Nd3+ {[%clk
0:07:42.1]} 39. Kc2 {[%clk 0:06:08.4]} 39... Nf2 {[%clk 0:07:44]} 40. a4 {[%clk
0:06:07.8]} 40... Nxh3 {[%clk 0:07:43.6]} 41. b5 {[%clk 0:06:09.1]} 41... axb5
{[%clk 0:07:44.8]} 42. axb5 {[%clk 0:06:02.3]} 42... Nf4 {[%clk 0:07:46.3]} 43.
b6 {[%clk 0:05:58.7]} 1-0

[Event "GrandPrix_29.05"]
[Site "Chess.com"]
[Date "2020.05.29"]
[Round "1"]
[White "XeresLt"]
[Black "LANCELOT96"]
[Result "0-1"]
[WhiteElo "1749"]
[BlackElo "2330"]
[TimeControl "600+2"]
[EndTime "9:12:28 PDT"]
[Termination "LANCELOT96 won by resignation"]

1. e4 {[%clk 0:10:00.2]} 1... c6 {[%clk 0:10:00.7]} 2. d4 {[%clk 0:09:59.5]}
2... d5 {[%clk 0:10:02.4]} 3. exd5 {[%clk 0:10:00.9]} 3... cxd5 {[%clk
0:10:03.5]} 4. c4 {[%clk 0:10:02.8]} 4... Nf6 {[%clk 0:10:04.3]} 5. Nc3 {[%clk
0:10:04.1]} 5... e6 {[%clk 0:10:05.7]} 6. cxd5 {[%clk 0:10:04.3]} 6... Nxd5
{[%clk 0:10:06.4]} 7. Nf3 {[%clk 0:10:05.2]} 7... Be7 {[%clk 0:10:07.7]} 8. Bd3
{[%clk 0:10:06.2]} 8... O-O {[%clk 0:10:08.5]} 9. O-O {[%clk 0:10:07.3]} 9...
Nc6 {[%clk 0:10:08.1]} 10. Re1 {[%clk 0:10:06.5]} 10... g6 {[%clk 0:09:57.3]}
11. a3 {[%clk 0:10:05.3]} 11... b6 {[%clk 0:09:55.6]} 12. Nxd5 {[%clk
0:10:01.8]} 12... Qxd5 {[%clk 0:09:56]} 13. Be4 {[%clk 0:10:01.3]} 13... Qd6
{[%clk 0:09:53.5]} 14. Ne5 {[%clk 0:09:39.4]} 14... Bb7 {[%clk 0:09:53.3]} 15.
Nxc6 {[%clk 0:09:40.1]} 15... Bxc6 {[%clk 0:09:54]} 16. Bxc6 {[%clk 0:09:41.2]}
16... Qxc6 {[%clk 0:09:55.3]} 17. d5 {[%clk 0:09:42.7]} 17... Qd7 {[%clk
0:09:35.6]} 18. Bh6 {[%clk 0:09:05.2]} 18... Rfd8 {[%clk 0:09:23.7]} 19. dxe6
{[%clk 0:08:46.9]} 19... Qxd1 {[%clk 0:09:24.3]} 20. Raxd1 {[%clk 0:08:47.6]}
20... fxe6 {[%clk 0:09:20.6]} 21. Kf1 {[%clk 0:08:33.7]} 21... Kf7 {[%clk
0:09:20.8]} 22. Rxd8 {[%clk 0:08:24.4]} 22... Rxd8 {[%clk 0:09:21.3]} 23. Rc1
{[%clk 0:08:25.8]} 23... Rd7 {[%clk 0:09:19.7]} 24. Ke2 {[%clk 0:08:22.5]} 24...
Bf6 {[%clk 0:09:14]} 25. Rc2 {[%clk 0:08:04.7]} 25... g5 {[%clk 0:09:07.1]} 26.
h4 {[%clk 0:08:04.2]} 26... gxh4 {[%clk 0:09:07.9]} 27. Be3 {[%clk 0:07:59.8]}
27... Kg6 {[%clk 0:09:06.4]} 28. a4 {[%clk 0:07:52.8]} 28... Kf5 {[%clk
0:08:59.2]} 29. b3 {[%clk 0:07:34.1]} 29... h5 {[%clk 0:08:50.4]} 30. Rc4 {[%clk
0:07:20.3]} 30... Rg7 {[%clk 0:08:37.3]} 31. Kf3 {[%clk 0:07:11.9]} 31... e5
{[%clk 0:08:27.7]} 32. g3 {[%clk 0:06:35.3]} 32... h3 {[%clk 0:08:08.1]} 33. Rc1
{[%clk 0:06:14.8]} 33... h4 {[%clk 0:08:05.9]} 34. gxh4 {[%clk 0:06:08.5]} 34...
e4+ {[%clk 0:07:58.3]} 35. Ke2 {[%clk 0:06:08]} 35... Rh7 {[%clk 0:07:59.7]} 36.
Kf1 {[%clk 0:05:55.9]} 36... Rxh4 {[%clk 0:07:59.3]} 37. Kg1 {[%clk 0:05:57]}
37... Be5 {[%clk 0:07:41.4]} 38. Kh1 {[%clk 0:05:33.2]} 38... Rh7 {[%clk
0:07:35.1]} 39. Rf1 {[%clk 0:05:25.9]} 39... Rd7 {[%clk 0:07:32.5]} 40. f3
{[%clk 0:05:26.8]} 40... Rd3 {[%clk 0:07:32.3]} 41. fxe4+ {[%clk 0:05:23.3]}
41... Kxe4 {[%clk 0:07:33.6]} 42. Bg1 {[%clk 0:05:25.2]} 42... Rxb3 {[%clk
0:07:29.6]} 43. Rf7 {[%clk 0:05:26]} 43... h2 {[%clk 0:07:02.2]} 44. Bxh2 {[%clk
0:05:18.9]} 44... Rh3 {[%clk 0:07:03.4]} 45. Rxa7 {[%clk 0:05:16.4]} 45... Rxh2+
{[%clk 0:07:04.6]} 46. Kg1 {[%clk 0:05:17.7]} 46... Ra2 {[%clk 0:07:03.3]} 47.
Kf1 {[%clk 0:05:17.5]} 47... Kd3 {[%clk 0:06:59]} 48. Ke1 {[%clk 0:05:10.3]}
48... Bd4 {[%clk 0:06:57.9]} 0-1

[Event "GrandPrix_29.05"]
[Site "Chess.com"]
[Date "2020.05.29"]
[Round "1"]
[White "OparinGrigoriy"]
[Black "friesnielsen2302"]
[Result "1-0"]
[WhiteElo "2282"]
[BlackElo "1516"]
[TimeControl "600+2"]
[EndTime "9:12:34 PDT"]
[Termination "OparinGrigoriy won by resignation"]

1. Nf3 {[%clk 0:10:01.8]} 1... e6 {[%clk 0:09:47.6]} 2. g3 {[%clk 0:10:02.1]}
2... d5 {[%clk 0:09:47.6]} 3. Bg2 {[%clk 0:10:03.5]} 3... Nf6 {[%clk 0:09:48.6]}
4. c4 {[%clk 0:10:01.7]} 4... Be7 {[%clk 0:09:49.1]} 5. d4 {[%clk 0:10:01.6]}
5... O-O {[%clk 0:09:49.2]} 6. Nc3 {[%clk 0:10:02.7]} 6... Na6 {[%clk
0:09:41.7]} 7. O-O {[%clk 0:09:53.2]} 7... c6 {[%clk 0:09:39.1]} 8. b3 {[%clk
0:09:47.2]} 8... b6 {[%clk 0:09:30.2]} 9. Bb2 {[%clk 0:09:47.6]} 9... Bb7 {[%clk
0:09:31]} 10. Rc1 {[%clk 0:09:37.9]} 10... Qb8 {[%clk 0:09:09]} 11. Ne5 {[%clk
0:09:32.5]} 11... Rd8 {[%clk 0:09:07]} 12. cxd5 {[%clk 0:09:28.7]} 12... cxd5
{[%clk 0:09:01.4]} 13. Qd2 {[%clk 0:09:05.5]} 13... Nc7 {[%clk 0:08:51.6]} 14.
Rc2 {[%clk 0:08:56.4]} 14... Nce8 {[%clk 0:08:50.1]} 15. Rfc1 {[%clk 0:08:56.9]}
15... Nd6 {[%clk 0:08:49]} 16. Qd3 {[%clk 0:08:28]} 16... Rc8 {[%clk 0:08:40.4]}
17. Ba3 {[%clk 0:08:13.8]} 17... Rc7 {[%clk 0:08:18.3]} 18. Nxd5 {[%clk
0:04:49.1]} 18... Nxd5 {[%clk 0:08:15.2]} 19. Rxc7 {[%clk 0:04:50.1]} 19... Nxc7
{[%clk 0:08:14.3]} 20. Nc6 {[%clk 0:04:51.4]} 20... Bxc6 {[%clk 0:08:06.2]} 21.
Bxc6 {[%clk 0:04:53.3]} 21... Nce8 {[%clk 0:07:35.3]} 22. Qf3 {[%clk 0:04:01.7]}
22... Nc7 {[%clk 0:07:33.3]} 23. Bxa8 {[%clk 0:03:56.1]} 23... Nxa8 {[%clk
0:07:34.2]} 24. Qc6 {[%clk 0:03:51.2]} 24... Qf8 {[%clk 0:07:33.1]} 25. Qd7
{[%clk 0:03:35.5]} 1-0

[Event "GrandPrix_29.05"]
[Site "Chess.com"]
[Date "2020.05.29"]
[Round "1"]
[White "Anton_Demchenko"]
[Black "Olghita64"]
[Result "1-0"]
[WhiteElo "2562"]
[BlackElo "2119"]
[TimeControl "600+2"]
[EndTime "9:12:35 PDT"]
[Termination "Anton_Demchenko won by resignation"]

1. d4 {[%clk 0:09:54.8]} 1... d5 {[%clk 0:10:00.2]} 2. Nf3 {[%clk 0:09:54.4]}
2... Nf6 {[%clk 0:09:59.3]} 3. Bf4 {[%clk 0:09:54.8]} 3... c5 {[%clk 0:09:59.8]}
4. e3 {[%clk 0:09:54.7]} 4... Nc6 {[%clk 0:10:00.5]} 5. Nbd2 {[%clk 0:09:52.4]}
5... cxd4 {[%clk 0:10:00.7]} 6. exd4 {[%clk 0:09:52.8]} 6... Bf5 {[%clk
0:09:59]} 7. Bb5 {[%clk 0:09:52]} 7... a6 {[%clk 0:09:23.9]} 8. Bxc6+ {[%clk
0:09:50.6]} 8... bxc6 {[%clk 0:09:24.3]} 9. c4 {[%clk 0:09:22.5]} 9... e6 {[%clk
0:09:02.5]} 10. O-O {[%clk 0:09:15.8]} 10... Bd6 {[%clk 0:08:29.3]} 11. Bxd6
{[%clk 0:08:39.5]} 11... Qxd6 {[%clk 0:08:28]} 12. Qa4 {[%clk 0:08:32]} 12...
O-O {[%clk 0:08:20.7]} 13. Rac1 {[%clk 0:08:16.9]} 13... Rfb8 {[%clk 0:07:21]}
14. b3 {[%clk 0:08:12.4]} 14... Rb4 {[%clk 0:06:28.9]} 15. Qa5 {[%clk
0:07:59.9]} 15... Bd3 {[%clk 0:05:36.5]} 16. Rfe1 {[%clk 0:07:38.8]} 16... dxc4
{[%clk 0:05:31]} 17. bxc4 {[%clk 0:07:06.7]} 17... Rb2 {[%clk 0:04:37.8]} 18.
Qc3 {[%clk 0:06:50.8]} 1-0

[Event "GrandPrix_29.05"]
[Site "Chess.com"]
[Date "2020.05.29"]
[Round "1"]
[White "Nitzan_Steinberg"]
[Black "FLamps8"]
[Result "1/2-1/2"]
[WhiteElo "2338"]
[BlackElo "2146"]
[TimeControl "600+2"]
[EndTime "9:12:43 PDT"]
[Termination "Game drawn by repetition"]

1. e4 {[%clk 0:10:01.6]} 1... c6 {[%clk 0:09:59.1]} 2. Nf3 {[%clk 0:09:58.4]}
2... d5 {[%clk 0:10:00.4]} 3. exd5 {[%clk 0:09:58.5]} 3... cxd5 {[%clk
0:10:01.5]} 4. Ne5 {[%clk 0:09:59.3]} 4... Nc6 {[%clk 0:09:59.1]} 5. d4 {[%clk
0:09:59.5]} 5... Nf6 {[%clk 0:09:51]} 6. c3 {[%clk 0:09:59.8]} 6... g6 {[%clk
0:09:43.2]} 7. Bb5 {[%clk 0:09:57.7]} 7... Qb6 {[%clk 0:09:37.3]} 8. a4 {[%clk
0:09:29.8]} 8... a6 {[%clk 0:09:19.9]} 9. Bxc6+ {[%clk 0:09:29.7]} 9... bxc6
{[%clk 0:09:21.8]} 10. a5 {[%clk 0:09:26.4]} 10... Qb7 {[%clk 0:08:56.8]} 11.
Nd2 {[%clk 0:09:16.6]} 11... Bg7 {[%clk 0:08:54.4]} 12. Qa4 {[%clk 0:09:05.7]}
12... Bd7 {[%clk 0:08:53]} 13. Nb3 {[%clk 0:09:02.6]} 13... Ne4 {[%clk
0:08:28.5]} 14. Bf4 {[%clk 0:08:29.2]} 14... Bxe5 {[%clk 0:07:53]} 15. Bxe5
{[%clk 0:08:30.2]} 15... f6 {[%clk 0:07:53.9]} 16. Bf4 {[%clk 0:08:31]} 16... c5
{[%clk 0:07:55.1]} 17. Qa3 {[%clk 0:08:31.4]} 17... c4 {[%clk 0:06:15]} 18. Nc5
{[%clk 0:07:52.3]} 18... Nxc5 {[%clk 0:06:15.4]} 19. Qxc5 {[%clk 0:07:53.3]}
19... Qxb2 {[%clk 0:03:31.6]} 20. O-O {[%clk 0:07:52.9]} 20... Qb5 {[%clk
0:03:33.2]} 21. Qa3 {[%clk 0:07:42.5]} 21... Qb3 {[%clk 0:03:34.3]} 22. Qc5
{[%clk 0:07:24]} 22... Qb5 {[%clk 0:03:35]} 23. Qa3 {[%clk 0:06:52.3]} 23... Qb3
{[%clk 0:03:35.8]} 24. Qc5 {[%clk 0:06:29.8]} 24... Qb5 {[%clk 0:03:36]} 1/2-1/2